bitfinex/quotes_SOLUSD_20241210
["timestamp","ask_amount","ask_price","bid_price","bid_amount"]
[1733814482898,2.26939523,217.53,217.42,23.776884]
[1733814483099,4.11460313,217.53,217.44,23.776884]
[1733814483418,2.26939523,217.53,217.44,23.776884]
[1733814483886,1.5291,217.53,217.44,23.776884]
[1733814484089,0.74029523,217.52,217.44,23.776884]
[1733814484516,0.74029523,217.52,217.42,23.776884]
[1733814485013,0.74029523,217.52,217.51,312.0]
[1733814485221,22.26939523,217.53,217.51,312.0]
[1733814485516,22.26939523,217.53,217.41,23.776884]
[1733814485725,22.26939523,217.53,217.43,23.776884]
[1733814486720,1.85501299,217.54,217.45,23.776884]
[1733814486891,2.26939523,217.58,217.47,23.776884]
[1733814486892,1.5291,217.58,217.47,23.776884]
[1733814487093,2.61271101,217.6,217.49,37.75955722]
[1733814487403,0.74029523,217.61,217.51,23.776884]
[1733814487605,2.26939523,217.63,217.53,23.776884]
[1733814488493,2.26939523,217.63,217.62,312.0]
[1733814488703,1.5291,217.63,217.62,312.0]
[1733814489516,3.40767745,217.63,217.62,312.0]
[1733814489816,20.0,217.62,217.51,23.776884]
[1733814489997,20.0,217.62,217.48,13.98267322]
[1733814489998,0.74029523,217.61,217.49,37.75955722]
[1733814490325,0.74029523,217.61,217.51,23.776884]
[1733814490615,0.74029523,217.61,217.59,312.0]
[1733814491612,0.74029523,217.61,217.5,23.776884]
[1733814493085,0.74029523,217.61,217.52,23.776884]
[1733814493290,1.83106299,217.64,217.55,37.75955722]
[1733814493515,4.36454505,217.68,217.57,37.75955722]
[1733814493694,4.36454505,217.68,217.59,23.776884]
[1733814493894,5.10484028,217.68,217.59,23.776884]
[1733814494093,4.36454505,217.68,217.59,23.776884]
[1733814494511,4.36454505,217.68,217.67,312.0]
[1733814494808,0.74029523,217.72,217.67,312.0]
[1733814495000,0.74029523,217.72,217.62,23.776884]
[1733814495400,2.82880322,217.71,217.61,23.776884]
[1733814495604,0.74029523,217.7,217.61,23.776884]
[1733814496006,0.74029523,217.73,217.62,0.6890943]
[1733814496223,0.74029523,217.73,217.63,23.776884]
[1733814496405,1.6133,217.74,217.64,0.6889901]
[1733814497009,2.74295646,217.73,217.65,23.776884]
[1733814497598,2.74295646,217.73,217.6,13.98267322]
[1733814497599,0.74029523,217.72,217.6,13.98267322]
[1733814497807,0.74029523,217.72,217.62,23.776884]
[1733814498140,0.74029523,217.72,217.7,312.0]
[1733814498423,0.74029523,217.72,217.57,23.776884]
[1733814498903,0.74029523,217.72,217.57,37.75955722]
[1733814499401,20.0,217.7,217.57,37.75955722]
[1733814499605,0.74029523,217.69,217.58,0.68916568]
[1733814499801,0.74029523,217.69,217.59,23.776884]
[1733814499999,20.0,217.7,217.61,23.776884]
[1733814500207,20.0,217.7,217.62,0.68905581]
[1733814500500,20.0,217.7,217.63,23.776884]
[1733814501106,4.59292151,217.73,217.64,0.68901074]
[1733814501308,20.0,217.7,217.63,23.776884]
[1733814501522,20.0,217.7,217.62,23.776884]
[1733814501724,20.0,217.7,217.62,24.46592938]
[1733814501917,2.74295646,217.73,217.62,38.4486026]
[1733814502906,0.74029523,217.72,217.62,23.776884]
[1733814503112,0.74029523,217.72,217.6,23.776884]
[1733814503624,0.74029523,217.72,217.62,23.776884]
[1733814504225,0.74029523,217.72,217.68,312.0]
[1733814504442,20.0,217.69,217.53,1.5795]
[1733814504605,7.8473,217.71,217.52,6.0846]
[1733814504606,20.74029523,217.68,217.52,6.0846]
[1733814504905,20.0,217.66,217.49,0.68939092]
[1733814505104,0.74029523,217.65,217.49,0.68939092]
[1733814505513,0.74029523,217.65,217.57,312.0]
[1733814506722,20.74029523,217.65,217.57,312.0]
[1733814506909,20.0,217.64,217.57,312.0]
[1733814507118,0.74029523,217.63,217.57,312.0]
[1733814508116,0.74029523,217.65,217.51,23.776884]
[1733814508311,0.74029523,217.65,217.53,23.776884]
[1733814508612,0.74029523,217.68,217.53,23.776884]
[1733814509209,0.74029523,217.68,217.51,23.776884]
[1733814509416,20.0,217.66,217.51,23.776884]
[1733814509645,0.74029523,217.65,217.51,23.776884]
[1733814510214,2.74742726,217.63,217.51,23.776884]
[1733814510431,0.74029523,217.62,217.51,23.776884]
[1733814510632,0.74029523,217.62,217.47,6.0846]
[1733814510813,0.74029523,217.62,217.47,6.77410571]
[1733814511125,0.74029523,217.62,217.58,312.0]
[1733814511706,20.0,217.58,217.44,13.98267322]
[1733814511903,0.74029523,217.57,217.45,0.6895926]
[1733814512636,0.74029523,217.57,217.45,14.67226582]
[1733814512816,20.0,217.58,217.45,14.67226582]
[1733814513016,20.0,217.58,217.46,23.776884]
[1733814513219,0.74029523,217.57,217.48,23.776884]
[1733814513415,0.74029523,217.57,217.46,23.776884]
[1733814514317,0.74029523,217.57,217.44,23.776884]
[1733814514514,0.74029523,217.57,217.46,23.776884]
[1733814514746,0.74029523,217.57,217.54,312.0]
[1733814515435,20.74029523,217.57,217.37,1.5452]
[1733814515637,20.0,217.56,217.37,1.5452]
[1733814515931,0.74029523,217.55,217.37,1.5452]
[1733814516134,0.74029523,217.55,217.37,15.52787322]
[1733814516437,0.74029523,217.55,217.38,0.68980428]
[1733814517013,0.74029523,217.55,217.39,23.776884]
[1733814517415,0.74029523,217.55,217.4,0.68976539]
[1733814517614,0.74029523,217.56,217.41,23.776884]
[1733814518413,0.74029523,217.56,217.49,312.0]
[1733814519718,0.74029523,217.56,217.41,37.75955722]
[1733814519918,0.74029523,217.56,217.43,23.776884]
[1733814520116,0.74029523,217.56,217.45,23.776884]
[1733814520330,0.74029523,217.57,217.45,23.776884]
[1733814521009,0.74029523,217.57,217.44,0.68960697]
[1733814521413,0.74029523,217.57,217.45,23.776884]
[1733814521717,2.60229195,217.6,217.47,23.776884]
[1733814522029,0.74029523,217.6,217.49,23.776884]
[1733814522741,0.74029523,217.6,217.57,312.0]
[1733814523042,20.0,217.58,217.57,312.0]
[1733814523236,20.0,217.58,217.49,37.75955722]
[1733814523537,20.0,217.58,217.47,8.1742]
[1733814523538,20.0,217.58,217.51,23.776884]
[1733814523720,20.0,217.58,217.52,0.68939353]
[1733814524754,20.0,217.58,217.51,23.776884]
[1733814525655,20.0,217.58,217.5,23.776884]
[1733814525932,20.0,217.58,217.52,23.776884]
[1733814526137,20.0,217.58,217.57,312.0]
[1733814529834,7.6262,217.66,217.57,312.0]
[1733814530034,7.6262,217.66,217.54,23.776884]
[1733814530240,0.74029523,217.65,217.56,23.776884]
[1733814531249,0.74029523,217.65,217.54,23.776884]
[1733814531821,20.0,217.63,217.54,23.776884]
[1733814532646,20.0,217.63,217.56,23.776884]
[1733814533023,20.0,217.63,217.62,312.0]
[1733814536821,20.0,217.63,217.53,23.776884]
[1733814537025,20.0,217.63,217.55,23.776884]
[1733814537733,0.74029523,217.62,217.55,23.776884]
[1733814538052,0.74029523,217.62,217.48,0.68930206]
[1733814538442,0.74029523,217.62,217.5,13.98267322]
[1733814538628,0.74029523,217.62,217.51,0.68939809]
[1733814539164,0.74029523,217.62,217.5,23.776884]
[1733814539939,0.74029523,217.62,217.57,312.0]
[1733814540339,0.74029523,217.62,217.48,23.776884]
[1733814540539,0.74029523,217.62,217.5,23.776884]
[1733814541453,0.74029523,217.62,217.49,23.776884]
[1733814541635,0.74029523,217.62,217.48,0.68946335]
[1733814541826,20.0,217.58,217.41,0.68948112]
[1733814542026,20.0,217.58,217.38,22.84660111]
[1733814542027,0.74029523,217.57,217.38,22.84660111]
[1733814542247,1.5061,217.56,217.38,8.86392789]
[1733814542437,0.74029523,217.55,217.38,8.86392789]
[1733814543444,0.74029523,217.55,217.47,312.0]
[1733814543752,6.1201,217.54,217.47,312.0]
[1733814543937,20.0,217.51,217.47,312.0]
[1733814544137,0.74029523,217.5,217.47,312.0]
[1733814544635,0.74029523,217.5,217.33,15.64517322]
[1733814544864,1.5061,217.49,217.33,2.35243715]
[1733814545068,0.74029523,217.48,217.33,0.68993715]
[1733814545233,0.74029523,217.48,217.3,13.98267322]
[1733814545434,0.74029523,217.48,217.31,0.69000695]
[1733814545937,20.0,217.44,217.28,2.35250669]
[1733814546139,0.74029523,217.43,217.25,13.98267322]
[1733814546459,0.74029523,217.43,217.26,0.69016067]
[1733814546834,20.0,217.42,217.23,13.98267322]
[1733814547034,20.0,217.42,217.21,0.69017939]
[1733814547035,0.74029523,217.41,217.24,0.69024353]
[1733814547255,0.74029523,217.41,217.21,13.98267322]
[1733814547573,20.0,217.37,217.3,312.0]
[1733814547775,0.74029523,217.36,217.3,312.0]
[1733814548354,0.74029523,217.36,217.2,13.98267322]
[1733814548355,20.0,217.32,217.19,20.49437322]
[1733814548568,0.74029523,217.31,217.2,0.69040221]
[1733814548740,20.0,217.32,217.22,13.98267322]
[1733814549056,20.0,217.32,217.23,0.69027773]
[1733814549261,0.74029523,217.31,217.23,0.69027773]
[1733814549552,0.74029523,217.31,217.21,0.69032425]
[1733814549753,20.0,217.32,217.21,0.69032425]
[1733814550053,20.0,217.32,217.21,14.67299747]
[1733814550258,20.0,217.32,217.22,13.98267322]
[1733814550559,20.0,217.32,217.23,0.69024822]
[1733814550864,6.1201,217.35,217.24,37.75955722]
[1733814551036,6.1201,217.35,217.19,26.5117]
[1733814551037,8.76939523,217.4,217.26,37.75955722]
[1733814551243,8.76939523,217.4,217.28,23.776884]
[1733814551575,8.76939523,217.4,217.37,312.0]
[1733814552849,20.0,217.38,217.37,312.0]
[1733814555881,20.0,217.37,217.17,1.6625]
[1733814556170,0.74029523,217.36,217.2,14.6729903]
[1733814557175,0.74029523,217.36,217.21,37.75955722]
[1733814557350,0.74029523,217.36,217.23,23.776884]
[1733814557746,0.74029523,217.36,217.25,23.776884]
[1733814557966,0.74029523,217.36,217.21,0.69030184]
[1733814558556,0.74029523,217.36,217.22,23.776884]
[1733814558867,0.74029523,217.36,217.31,312.0]
[1733814560948,0.74029523,217.36,217.22,23.776884]
[1733814561250,0.74029523,217.36,217.24,23.776884]
[1733814561451,0.74029523,217.36,217.26,23.776884]
[1733814561951,0.74029523,217.36,217.22,23.776884]
[1733814562154,0.74029523,217.36,217.24,23.776884]
[1733814563055,0.74029523,217.36,217.23,0.69029987]
[1733814563570,0.74029523,217.36,217.24,23.776884]
[1733814563881,0.74029523,217.36,217.25,0.69026201]
[1733814564071,0.74029523,217.36,217.33,312.0]
[1733814566771,0.74029523,217.39,217.33,312.0]
[1733814566966,4.65154701,217.48,217.34,0.69008546]
[1733814566967,0.74029523,217.43,217.34,0.69008546]
[1733814567172,0.74029523,217.46,217.35,23.776884]
[1733814567676,2.59704581,217.46,217.35,23.776884]
[1733814568466,20.0,217.45,217.35,23.776884]
[1733814568659,0.74029523,217.44,217.35,23.776884]
[1733814569878,0.74029523,217.44,217.32,23.776884]
[1733814570184,0.74029523,217.44,217.3,23.776884]
[1733814570674,0.74029523,217.44,217.28,23.776884]
[1733814571651,0.74029523,217.44,217.27,0.69013524]
[1733814571855,0.74029523,217.44,217.28,23.776884]
[1733814572883,0.74029523,217.44,217.36,312.0]
[1733814573283,20.74029523,217.44,217.36,312.0]
[1733814574863,20.61388293,217.44,217.36,312.0]
[1733814576883,20.61388293,217.44,217.26,23.776884]
[1733814577081,20.61388293,217.44,217.28,23.776884]
[1733814577792,20.61388293,217.44,217.3,23.776884]
[1733814578366,20.61388293,217.44,217.27,23.776884]
[1733814578568,20.61388293,217.44,217.29,23.776884]
[1733814578786,20.61388293,217.44,217.3,0.69011494]
[1733814579272,20.61388293,217.44,217.29,23.776884]
[1733814579472,20.61388293,217.44,217.27,23.776884]
[1733814579681,20.61388293,217.44,217.37,312.0]
[1733814582777,20.0,217.42,217.22,1.5094]
[1733814582985,6.5045,217.39,217.22,2.19966016]
[1733814583303,20.0,217.36,217.22,2.19966016]
[1733814583479,0.48747063,217.35,217.22,2.19966016]
[1733814583676,20.0,217.36,217.22,16.18233338]
[1733814583878,20.0,217.36,217.32,312.0]
[1733814584875,20.0,217.36,217.22,1.5094]
[1733814585185,20.0,217.36,217.23,23.776884]
[1733814585386,20.0,217.36,217.25,23.776884]
[1733814585593,0.48747063,217.35,217.25,23.776884]
[1733814586316,0.48747063,217.35,217.24,0.69021611]
[1733814586504,0.48747063,217.35,217.25,23.776884]
[1733814587601,20.48747063,217.36,217.25,23.776884]
[1733814588099,20.48747063,217.36,217.35,312.0]
[1733814588279,20.0,217.36,217.23,23.776884]
[1733814588481,0.48747063,217.35,217.25,23.776884]
[1733814589491,0.48747063,217.35,217.23,23.776884]
[1733814589683,0.48747063,217.35,217.25,23.776884]
[1733814589883,0.48747063,217.35,217.24,0.6902385]
[1733814591298,0.48747063,217.35,217.31,312.0]
[1733814593899,20.48747063,217.35,217.31,312.0]
[1733814594488,0.48747063,217.35,217.31,312.0]
[1733814594710,20.0,217.34,217.31,312.0]
[1733814596310,20.0,217.35,217.22,1.5094]
[1733814596490,20.0,217.35,217.24,23.776884]
[1733814596693,20.0,217.33,217.26,23.776884]
[1733814597098,20.0,217.34,217.26,23.776884]
[1733814597406,20.0,217.35,217.26,23.776884]
[1733814597708,20.0,217.34,217.26,23.776884]
[1733814598086,20.0,217.33,217.26,23.776884]
[1733814598792,20.0,217.32,217.26,23.776884]
[1733814598990,20.0,217.32,217.27,0.69020721]
[1733814599189,20.0,217.32,217.26,23.776884]
[1733814599411,20.0,217.33,217.31,312.0]
[1733814599790,20.0,217.32,217.31,312.0]
[1733814600897,20.0,217.32,217.22,1.5094]
[1733814601221,20.0,217.32,217.22,2.19974794]
[1733814601429,20.0,217.33,217.22,2.19974794]
[1733814601632,20.0,217.32,217.22,2.19974794]
[1733814602234,20.0,217.31,217.23,23.776884]
[1733814602436,20.0,217.31,217.25,23.776884]
[1733814602725,20.0,217.31,217.27,23.776884]
[1733814602890,20.0,217.33,217.27,23.776884]
[1733814603091,20.0,217.34,217.26,0.69019971]
[1733814603317,20.0,217.33,217.24,23.776884]
[1733814603525,20.0,217.33,217.26,23.776884]
[1733814604033,20.0,217.34,217.32,312.0]
[1733814604414,20.0,217.34,217.26,23.776884]
[1733814606037,20.0,217.33,217.26,23.776884]
[1733814607214,20.0,217.34,217.27,0.6902172]
[1733814607414,20.0,217.34,217.33,312.0]
[1733814609053,7.18817151,217.37,217.33,312.0]
[1733814609336,7.18817151,217.41,217.35,23.776884]
[1733814609524,7.18817151,217.43,217.36,0.68990236]
[1733814609914,7.18817151,217.43,217.37,23.776884]
[1733814610132,7.80205444,217.46,217.38,0.68985122]
[1733814610856,7.18817151,217.46,217.38,0.68985122]
[1733814611139,7.80205444,217.49,217.39,23.776884]
[1733814611320,7.18817151,217.48,217.39,23.776884]
[1733814611922,7.80205444,217.49,217.39,23.776884]
[1733814612136,7.18817151,217.48,217.39,23.776884]
[1733814612438,7.80205444,217.49,217.46,312.0]
[1733814612631,20.0,217.47,217.46,312.0]
[1733814616155,20.0,217.47,217.39,23.776884]
[1733814616450,20.0,217.47,217.37,23.776884]
[1733814616637,20.0,217.47,217.39,23.776884]
[1733814619018,0.61388293,217.46,217.31,2.27280698]
[1733814619222,20.0,217.45,217.37,312.0]
[1733814619464,0.61388293,217.44,217.37,312.0]
[1733814621160,20.0,217.43,217.26,1.5828]
[1733814621378,20.0,217.43,217.26,2.27297223]
[1733814621379,20.0,217.4,217.26,2.27297223]
[1733814621669,0.61388293,217.39,217.26,2.27297223]
[1733814621961,20.61388293,217.39,217.26,2.27297223]
[1733814622438,20.61388293,217.39,217.27,23.776884]
[1733814622744,20.0,217.37,217.21,8.95488312]
[1733814622926,0.61388293,217.36,217.22,0.69024774]
[1733814624039,0.61388293,217.36,217.31,312.0]
[1733814625625,2.46610486,217.36,217.31,312.0]
[1733814625825,2.46610486,217.36,217.2,8.0725]
[1733814625826,20.0,217.35,217.2,8.0725]
[1733814626049,20.0,217.33,217.2,8.0725]
[1733814626253,22.26908293,217.32,217.2,1.5828]
[1733814628539,2.26908293,217.32,217.18,23.776884]
[1733814628743,22.26908293,217.32,217.2,23.776884]
[1733814628966,20.0,217.28,217.26,312.0]
[1733814629138,20.0,217.28,217.15,8.3166531]
[1733814629139,0.61388293,217.27,217.15,8.3166531]
[1733814629649,0.61388293,217.27,217.15,2.1691531]
[1733814630636,0.61388293,217.27,217.15,0.5671531]
[1733814631362,20.0,217.22,217.15,0.5671531]
[1733814631675,0.61388293,217.21,217.15,0.5671531]
[1733814632037,0.61388293,217.21,217.15,312.5671531]
[1733814633055,0.61388293,217.21,217.15,0.5671531]
[1733814633745,2.79480751,217.2,217.15,0.5671531]
[1733814634137,20.0,217.22,217.16,23.776884]
[1733814634366,6.5509,217.25,217.16,24.46742016]
[1733814634866,0.61388293,217.24,217.16,24.46742016]
[1733814635366,2.77794634,217.24,217.16,24.46742016]
[1733814635744,20.0,217.22,217.16,24.46742016]
[1733814635967,20.0,217.22,217.21,312.0]
[1733814641294,3.3835369,217.29,217.21,335.776884]
[1733814641576,2.76965397,217.29,217.22,0.69035711]
[1733814642277,2.26908293,217.33,217.22,0.69035711]
[1733814642782,20.61388293,217.32,217.23,23.776884]
[1733814643452,23.38408972,217.32,217.19,23.776884]
[1733814643762,23.38408972,217.32,217.21,23.776884]
[1733814644353,23.38408972,217.32,217.29,312.0]
[1733814644547,22.77020679,217.32,217.29,312.0]
[1733814645371,23.38408972,217.32,217.29,312.0]
[1733814646174,20.0,217.32,217.19,23.776884]
[1733814646371,20.0,217.32,217.21,23.776884]
[1733814646551,1.85566815,217.33,217.23,23.776884]
[1733814646868,20.61388293,217.36,217.25,23.776884]
[1733814647175,2.25978293,217.38,217.27,23.776884]
[1733814648348,20.0,217.37,217.27,23.776884]
[1733814648670,0.61388293,217.36,217.27,23.776884]
[1733814649074,20.61388293,217.37,217.27,23.776884]
[1733814649275,20.61388293,217.37,217.34,312.0]
[1733814649673,20.0,217.37,217.34,312.0]
[1733814650973,0.61388293,217.36,217.25,23.776884]
[1733814651186,0.61388293,217.36,217.24,6.299]
[1733814652184,0.61388293,217.36,217.23,1.5793]
[1733814653560,0.61388293,217.36,217.2,23.776884]
[1733814654060,0.61388293,217.36,217.27,312.0]
[1733814655159,0.61388293,217.36,217.2,23.776884]
[1733814655373,0.61388293,217.36,217.17,1.5793]
[1733814655374,43.776884,217.35,217.17,1.5793]
[1733814655578,20.0,217.32,217.17,1.5793]
[1733814655781,20.61388293,217.31,217.17,1.5793]
[1733814656167,8.1692,217.3,217.17,1.5793]
[1733814656375,20.0,217.27,217.17,1.5793]
[1733814656581,0.61388293,217.26,217.17,1.5793]
[1733814658082,0.61388293,217.26,217.21,312.0]
[1733814659485,0.61388293,217.26,217.17,1.5793]
[1733814660087,0.61388293,217.29,217.18,24.46739755]
[1733814661385,10.05720538,217.3,217.18,24.46739755]
[1733814662469,0.61388293,217.29,217.18,24.46739755]
[1733814662677,20.0,217.28,217.27,312.0]
[1733814668068,20.0,217.28,217.18,23.776884]
[1733814668285,0.61388293,217.27,217.17,1.5793]
[1733814668471,0.61388293,217.3,217.15,0.5671531]
[1733814669576,0.61388293,217.3,217.16,0.69049268]
[1733814669972,0.61388293,217.3,217.17,23.776884]
[1733814670990,20.61388293,217.3,217.16,23.776884]
[1733814671192,20.61388293,217.3,217.2,312.0]
[1733814671577,20.0,217.29,217.16,23.776884]
[1733814671771,0.61388293,217.28,217.16,24.46734805]
[1733814672592,20.0,217.29,217.16,24.46734805]
[1733814672784,20.0,217.29,217.18,23.776884]
[1733814673090,20.0,217.29,217.2,23.776884]
[1733814673498,2.47161683,217.31,217.2,23.776884]
[1733814674589,2.47161683,217.31,217.25,312.0]
[1733814676184,2.47161683,217.31,217.2,23.776884]
[1733814676386,2.47161683,217.31,217.18,23.776884]
[1733814676594,2.47161683,217.31,217.2,23.776884]
[1733814679088,2.47161683,217.31,217.26,312.0]
[1733814679513,2.47161683,217.31,217.15,0.5671531]
[1733814679514,20.0,217.3,217.15,0.5671531]
[1733814679823,20.61388293,217.29,217.16,23.776884]
[1733814680825,20.0,217.28,217.15,0.5671531]
[1733814681020,0.61388293,217.27,217.15,0.5671531]
[1733814681225,1.5586,217.26,217.15,0.5671531]
[1733814681404,0.61388293,217.25,217.15,0.5671531]
[1733814681922,0.61388293,217.25,217.16,23.776884]
[1733814682397,0.61388293,217.25,217.2,312.0]
[1733814682595,1.5586,217.26,217.2,312.0]
[1733814682920,1.5586,217.26,217.15,9.52745431]
[1733814682921,20.0,217.3,217.21,24.46731663]
[1733814683526,2.47161683,217.31,217.21,24.46731663]
[1733814683701,0.61388293,217.31,217.21,24.46731663]
[1733814685018,3.44437964,217.32,217.21,24.46731663]
[1733814685223,13.71147151,217.35,217.21,24.46731663]
[1733814685224,6.5233,217.35,217.23,32.73718521]
[1733814685398,7.13718293,217.35,217.25,23.776884]
[1733814685910,7.13718293,217.35,217.32,312.0]
[1733814687429,20.0,217.33,217.32,312.0]
[1733814688517,107.18817151,217.36,217.32,312.0]
[1733814688717,100.0,217.36,217.32,312.0]
[1733814689420,100.0,217.36,217.25,23.776884]
[1733814689621,100.0,217.36,217.27,23.776884]
[1733814689926,20.0,217.33,217.27,23.776884]
[1733814690507,20.0,217.33,217.21,1.6381]
[1733814690508,20.0,217.33,217.25,23.776884]
[1733814691539,20.0,217.33,217.23,23.776884]
[1733814692416,20.0,217.33,217.3,312.0]
[1733814694633,20.0,217.32,217.3,312.0]
[1733814696728,20.0,217.31,217.3,312.0]
[1733814699529,20.0,217.32,217.22,23.776884]
[1733814700249,0.61388293,217.31,217.22,23.776884]
[1733814700534,20.61388293,217.31,217.22,23.776884]
[1733814700720,20.61388293,217.31,217.2,23.776884]
[1733814701324,20.0,217.3,217.2,23.776884]
[1733814701650,20.0,217.3,217.2,0.69034811]
[1733814702018,20.0,217.3,217.21,23.776884]
[1733814702438,120.0,217.3,217.28,312.0]
[1733814705822,120.0,217.3,217.19,23.776884]
[1733814706030,120.0,217.3,217.21,23.776884]
[1733814706231,20.0,217.29,217.21,23.776884]
[1733814706858,20.0,217.27,217.21,23.776884]
[1733814707015,20.0,217.27,217.22,0.69037432]
[1733814708145,20.0,217.27,217.21,23.776884]
[1733814708827,20.0,217.27,217.26,312.0]
[1733814710436,20.0,217.27,217.21,23.776884]
[1733814710739,0.61388293,217.26,217.17,23.776884]
[1733814710947,20.61388293,217.26,217.17,23.776884]
[1733814711533,20.0,217.25,217.13,0.69042953]
[1733814713247,20.0,217.24,217.16,0.69056121]
[1733814713423,20.0,217.24,217.21,312.0]
[1733814716043,20.0,217.22,217.21,312.0]
[1733814719235,20.0,217.23,217.16,23.776884]
[1733814719745,7.18817151,217.27,217.17,0.69052034]
[1733814719941,128.75268604,217.3,217.17,0.69052034]
[1733814719942,100.0,217.3,217.19,8.96030121]
[1733814720145,100.0,217.3,217.2,24.46718476]
[1733814720725,100.0,217.3,217.21,8.96030121]
[1733814721063,100.0,217.3,217.23,23.776884]
[1733814721233,100.0,217.3,217.25,23.776884]
[1733814722333,100.0,217.3,217.29,312.0]
[1733814722534,100.0,217.3,217.29,335.776884]
[1733814723351,100.0,217.3,217.29,312.0]
[1733814725647,20.0,217.27,217.21,23.776884]
[1733814725843,20.0,217.27,217.21,24.4672394]
[1733814727139,20.0,217.27,217.21,23.776884]
[1733814728237,20.0,217.27,217.15,9.52745431]
[1733814728238,0.61388293,217.26,217.15,0.5671531]
[1733814728549,20.0,217.24,217.19,312.0]
[1733814729143,0.61388293,217.23,217.15,0.5671531]
[1733814729342,20.61388293,217.23,217.15,0.5671531]
[1733814729771,20.0,217.22,217.15,0.5671531]
[1733814730429,20.0,217.22,217.16,23.776884]
[1733814730943,20.0,217.24,217.16,23.776884]
[1733814731250,20.0,217.25,217.16,23.776884]
[1733814731858,20.0,217.25,217.18,23.776884]
[1733814732156,20.0,217.26,217.24,312.0]
[1733814732535,20.0,217.26,217.18,23.776884]
[1733814732740,20.0,217.27,217.2,23.776884]
[1733814733847,20.0,217.27,217.2,24.46728606]
[1733814735658,20.0,217.27,217.26,212.0]
[1733814735831,1.8340486,217.29,217.2,23.776884]
[1733814736035,0.61388293,217.31,217.2,23.776884]
[1733814736742,0.61388293,217.31,217.21,312.0]
[1733814737638,2.48299899,217.31,217.21,312.0]
[1733814738254,2.48299899,217.31,217.2,23.776884]
[1733814738437,1.86911606,217.31,217.22,23.776884]
[1733814738764,0.61388293,217.31,217.22,23.776884]
[1733814738942,0.61388293,217.31,217.18,23.776884]
[1733814739134,0.61388293,217.31,217.2,23.776884]
[1733814740340,0.61388293,217.31,217.15,1.25756521]
[1733814740544,0.61388293,217.31,217.16,23.776884]
[1733814740946,0.61388293,217.31,217.15,1.25756521]
[1733814741354,0.61388293,217.31,217.18,312.0]
[1733814742050,0.61388293,217.31,217.19,23.776884]
[1733814742645,0.61388293,217.31,217.21,23.776884]
[1733814745240,0.61388293,217.31,217.23,312.0]
[1733814745648,20.0,217.3,217.23,312.0]
[1733814745846,20.0,217.28,217.23,312.0]
[1733814748246,7.80205444,217.31,217.23,312.0]
[1733814748247,20.0,217.29,217.23,312.0]
[1733814749469,20.0,217.28,217.23,312.0]
[1733814750243,20.0,217.29,217.23,312.0]
[1733814750445,20.0,217.28,217.23,312.0]
[1733814750645,20.0,217.28,217.21,23.776884]
[1733814751351,20.0,217.27,217.21,23.776884]
[1733814751673,20.0,217.26,217.16,0.69039292]
[1733814751872,0.61388293,217.25,217.16,0.69039292]
[1733814752666,20.0,217.26,217.16,0.69039292]
[1733814752867,0.61388293,217.25,217.16,0.69039292]
[1733814753454,20.61388293,217.25,217.17,23.776884]
[1733814753650,20.61388293,217.25,217.18,312.0]
[1733814756848,20.0,217.26,217.2,23.776884]
[1733814757054,20.0,217.27,217.2,23.776884]
[1733814757465,20.0,217.27,217.21,0.69041736]
[1733814757655,20.0,217.28,217.21,0.69041736]
[1733814758651,20.0,217.28,217.16,23.776884]
[1733814758652,0.61388293,217.27,217.16,23.776884]
[1733814758877,20.61388293,217.27,217.18,23.776884]
[1733814759754,20.61388293,217.27,217.18,0.69048482]
[1733814759971,20.0,217.27,217.2,312.0]
[1733814760353,20.0,217.27,217.17,23.776884]
[1733814760573,20.0,217.27,217.19,23.776884]
[1733814760773,0.61388293,217.26,217.17,23.776884]